bitfinex/quotes_ETHUSD_20250903
["timestamp","ask_amount","ask_price","bid_price","bid_amount"]
[1756883460213,1e-08,4307.0,4306.9,12.79046253]
[1756883460417,1e-08,4307.0,4306.9,11.56806253]
[1756883460576,1e-08,4307.0,4306.9,11.85586253]
[1756883461392,1e-08,4307.0,4306.9,12.77236253]
[1756883461603,1e-08,4307.0,4306.9,11.56806253]
[1756883461805,0.73280001,4307.0,4306.9,11.56806253]
[1756883462186,0.73280001,4307.0,4306.9,8.56806253]
[1756883463023,1e-08,4307.0,4306.9,8.76281753]
[1756883464122,1e-08,4307.0,4306.9,12.24501753]
[1756883465333,1e-08,4307.0,4306.9,12.67931753]
[1756883466529,1e-08,4307.0,4306.9,11.76181753]
[1756883467017,1e-08,4307.0,4306.9,12.67831753]
[1756883467320,1e-08,4307.0,4306.9,8.26301753]
[1756883467525,1e-08,4307.0,4306.9,12.67831753]
[1756883467900,1e-08,4307.0,4306.9,12.24401753]
[1756883468822,1e-08,4307.0,4306.9,12.20851753]
[1756883471003,1e-08,4307.0,4306.9,8.22751753]
[1756883471200,1e-08,4307.0,4306.9,11.92071753]
[1756883471829,1e-08,4307.0,4306.9,12.20851753]
[1756883472028,1e-08,4307.0,4306.9,11.92071753]
[1756883472227,0.28710001,4307.0,4306.9,11.92071753]
[1756883472937,1e-08,4307.0,4306.9,11.92071753]
[1756883473821,1e-08,4307.0,4306.9,12.20851753]
[1756883474119,1e-08,4307.0,4306.9,25.79071753]
[1756883474335,0.001,4307.7,4307.6,3.11347831]
[1756883474501,0.001,4308.3,4307.7,3.792]
[1756883474705,0.001,4308.3,4308.1,0.792]
[1756883475008,0.001,4308.3,4308.1,17.988]
[1756883475203,0.001,4308.3,4308.1,16.61700888]
[1756883475433,0.001,4308.3,4308.1,20.59700888]
[1756883475753,0.001,4308.3,4308.1,22.86491685]
[1756883477000,0.001,4308.3,4308.1,25.86491685]
[1756883479942,0.2881,4308.2,4308.1,25.57711685]
[1756883480151,0.001,4308.2,4308.1,25.57711685]
[1756883482046,0.2881,4308.2,4308.1,21.59711685]
[1756883482247,0.7338,4308.2,4308.1,25.57611685]
[1756883482449,1.2213,4308.2,4308.1,25.57611685]
[1756883482624,1.2213,4308.2,4308.1,21.59711685]
[1756883482946,1.2213,4308.2,4308.1,25.57611685]
[1756883483683,0.2881,4308.2,4308.1,25.57611685]
[1756883484327,1e-08,4308.2,4308.1,26.78041685]
[1756883484528,0.001,4308.3,4308.2,6.113155]
[1756883484529,1e-08,4308.3,4308.2,6.113155]
[1756883484727,1e-08,4308.3,4308.2,8.38106297]
[1756883484913,1e-08,4308.4,4308.3,6.11310113]
[1756883485117,1e-08,4308.4,4308.3,11.00860113]
[1756883485340,1e-08,4308.4,4308.3,11.29640113]
[1756883485738,1e-08,4308.4,4308.3,10.37990113]
[1756883485936,1e-08,4308.4,4308.3,8.3810091]
[1756883485937,0.28710001,4308.4,4308.3,8.3810091]
[1756883486137,1e-08,4308.4,4308.3,12.3600091]
[1756883486447,1e-08,4308.4,4308.3,8.3810091]
[1756883486644,0.28710001,4308.4,4308.3,12.3600091]
[1756883486816,1e-08,4308.4,4308.3,8.3810091]
[1756883487010,1e-08,4308.4,4308.3,12.3590091]
[1756883487432,0.28710001,4308.4,4308.3,12.3590091]
[1756883487632,0.73280001,4308.4,4308.3,12.3590091]
[1756883487841,0.73280001,4308.4,4308.3,25.4590091]
[1756883488815,0.73280001,4308.4,4308.3,21.4810091]
[1756883489081,1.22030001,4308.4,4308.3,25.4590091]
[1756883489868,0.73280001,4308.4,4308.3,25.4590091]
[1756883490434,1.18510001,4308.4,4308.3,25.4590091]
[1756883490768,1e-08,4308.4,4308.3,25.4590091]
[1756883491074,0.31100001,4308.4,4308.3,25.4590091]
[1756883491378,1.21740001,4308.4,4308.3,20.19110113]
[1756883492335,1.21740001,4308.4,4308.3,16.21310113]
[1756883492571,1.21740001,4308.4,4308.3,7.09110113]
[1756883493173,1e-08,4308.4,4308.3,7.09110113]
[1756883493463,0.31100001,4308.4,4308.3,3.11310113]
[1756883493654,1.21740001,4308.4,4308.3,7.09110113]
[1756883494051,1e-08,4308.4,4308.3,7.09110113]
[1756883494250,1e-08,4308.4,4308.3,8.52120759]
[1756883494452,1e-08,4308.4,4308.3,12.01840759]
[1756883494653,1e-08,4308.4,4308.3,18.62322734]
[1756883495130,1e-08,4308.4,4308.3,31.72322734]
[1756883495546,0.021,4308.8,4308.3,31.72322734]
[1756883495748,0.001,4308.9,4308.8,6.11283178]
[1756883495749,1e-08,4308.9,4308.8,6.11283178]
[1756883495968,1e-08,4308.9,4308.8,10.08983178]
[1756883496163,1e-08,4308.9,4308.8,10.88193178]
[1756883496364,1e-08,4308.9,4308.8,23.98193178]
[1756883496589,1e-08,4308.9,4308.8,24.43093178]
[1756883496767,1e-08,4308.9,4308.8,26.69883975]
[1756883497972,1e-08,4308.9,4308.8,22.38883975]
[1756883498176,1e-08,4308.9,4308.8,25.57373975]
[1756883498346,0.31100001,4308.9,4308.8,25.57373975]
[1756883498541,1e-08,4308.9,4308.8,25.86863975]
[1756883499258,1e-08,4308.9,4308.8,26.36583975]
[1756883499453,1e-08,4308.9,4308.8,21.89163975]
[1756883499656,1e-08,4308.9,4308.8,25.86863975]
[1756883500351,1e-08,4308.9,4308.8,21.89163975]
[1756883500554,1e-08,4308.9,4308.8,25.86863975]
[1756883500977,0.31100001,4308.9,4308.8,21.59673975]
[1756883501274,1e-08,4308.9,4308.8,25.57373975]
[1756883502083,1e-08,4308.9,4308.8,25.88863975]
[1756883504494,0.76510001,4308.9,4308.8,25.59273975]
[1756883504799,0.31100001,4308.9,4308.8,25.59273975]
[1756883504964,1e-08,4308.9,4308.8,25.59273975]
[1756883505165,1e-08,4308.9,4308.8,25.86763975]
[1756883506478,1e-08,4308.9,4308.8,25.57273975]
[1756883507894,1e-08,4308.9,4308.8,25.86763975]
[1756883508080,1e-08,4308.9,4308.8,26.81383975]
[1756883508792,1e-08,4308.9,4308.8,21.89163975]
[1756883508964,1e-08,4308.9,4308.8,25.86763975]
[1756883510394,1e-08,4308.9,4308.8,26.81383975]
[1756883510603,0.001,4309.7,4309.1,0.792]
[1756883510766,0.001,4309.7,4309.6,1.2029]
[1756883510965,0.001,4309.7,4309.6,10.49830096]
[1756883511165,0.001,4309.7,4309.6,23.59830096]
[1756883512568,0.001,4309.7,4309.6,23.30340096]
[1756883512770,0.312,4309.7,4309.6,23.30340096]
[1756883513102,0.312,4309.7,4309.6,25.57130893]
[1756883515600,0.312,4309.7,4309.6,21.59630893]
[1756883515801,1.2184,4309.7,4309.6,25.57130893]
[1756883517072,0.7661,4309.7,4309.6,25.57130893]
[1756883517669,1.2184,4309.7,4309.6,21.59630893]
[1756883517871,1.2184,4309.7,4309.6,23.30340096]
[1756883518090,0.7661,4309.7,4309.6,23.30340096]
[1756883519205,1.2184,4309.7,4309.6,23.30340096]
[1756883519804,0.001,4309.7,4309.6,23.59340096]
[1756883520283,0.021,4309.8,4309.7,6.11234712]
[1756883520610,0.021,4309.8,4309.7,8.86935509]
[1756883520905,0.021,4309.8,4309.7,22.25935509]
[1756883521271,0.021,4309.8,4309.7,21.77025509]
[1756883523305,0.021,4309.8,4309.7,25.74425509]
[1756883524914,0.021,4309.8,4309.7,26.23335509]
[1756883525117,0.021,4309.8,4309.7,22.25935509]
[1756883525317,0.021,4309.8,4309.7,25.74325509]
[1756883525525,0.3085,4309.8,4309.7,25.45325509]
[1756883526192,0.021,4309.8,4309.7,25.45325509]
[1756883526911,0.3085,4309.8,4309.7,25.45325509]
[1756883527293,0.021,4309.8,4309.7,25.45325509]
[1756883527495,0.3085,4309.8,4309.7,21.48025509]
[1756883527684,0.7734,4309.8,4309.7,25.45325509]
[1756883527889,0.3085,4309.8,4309.7,25.45325509]
[1756883528388,0.021,4309.8,4309.7,25.45325509]
[1756883528798,0.021,4309.8,4309.7,21.48025509]
[1756883529145,0.021,4309.8,4309.7,25.45325509]
[1756883529285,0.3085,4309.8,4309.7,25.45325509]
[1756883530032,1.2312,4309.8,4309.7,13.1]
[1756883530235,1.2312,4309.8,4309.7,19.39334712]
[1756883530587,1.2312,4309.8,4309.7,20.18534712]
[1756883531229,1.2312,4309.8,4309.7,3.972]
[1756883531434,1.2312,4309.8,4309.7,6.29234712]
[1756883531734,1.2312,4309.8,4309.7,7.08434712]
[1756883532229,1.2312,4309.8,4309.7,3.11234712]
[1756883532516,1.2312,4309.8,4309.7,7.08434712]
[1756883535026,1.2312,4309.8,4309.7,4.764]
[1756883535208,1.2312,4309.8,4309.7,7.08434712]
[1756883535601,1.2312,4309.8,4309.7,4.764]
[1756883535997,1.2312,4309.8,4309.7,7.08434712]
[1756883536496,1.2312,4309.8,4309.7,4.764]
[1756883536899,1.2312,4309.8,4309.7,7.08434712]
[1756883537511,1.2312,4309.8,4309.7,3.11234712]
[1756883537712,1.2312,4309.8,4309.7,7.08434712]
[1756883538448,1.96990198,4309.8,4309.7,0.792]
[1756883539002,2.08590198,4309.8,4309.7,0.792]
[1756883544728,1.3472,4309.8,4309.7,0.792]
[1756883545444,0.8894,4309.8,4309.7,3.11234712]
[1756883545645,0.4245,4309.8,4309.7,3.11234712]
[1756883546145,0.8894,4309.8,4309.7,3.11234712]
[1756883546956,0.7663,4309.8,4309.7,4.763]
[1756883547254,8.60919346,4309.8,4309.7,4.763]
[1756883551767,8.60919346,4309.8,4309.7,4.762]
[1756883553134,8.60919346,4309.8,4309.7,0.792]
[1756883553335,8.15139346,4309.8,4309.7,4.762]
[1756883554268,9.45873281,4309.8,4309.7,4.762]
[1756883555635,9.45873281,4309.8,4309.6,0.004]
[1756883555841,0.13918533,4309.7,4309.6,0.004]
[1756883556377,1.38288533,4309.7,4309.6,0.004]
[1756883557567,3.70323245,4309.7,4309.6,0.004]
[1756883557737,1.69142112,4309.7,4309.6,0.004]
[1756883560951,7.01176824,4309.7,4309.6,0.004]
[1756883561293,7.37799346,4309.3,4309.2,0.004]
[1756883561586,11.46299346,4309.3,4309.2,0.004]
[1756883561881,14.23115672,4309.3,4309.2,0.004]
[1756883563646,16.55171922,4309.3,4309.2,0.004]
[1756883564258,14.23115672,4309.3,4309.2,0.004]
[1756883568196,9.78155672,4309.3,4309.2,0.004]
[1756883568362,6.37156326,4309.3,4309.2,0.004]
[1756883568554,6.85216326,4309.3,4309.2,0.004]
[1756883572491,6.37156326,4309.3,4309.2,0.004]
[1756883574589,1.64046326,4309.3,4309.2,0.3075]
[1756883574788,4.083,4309.3,4309.2,1.589]
[1756883574954,4.083,4309.3,4309.2,2.0556]
[1756883575489,0.116,4309.3,4309.2,2.0556]
[1756883575986,0.116,4309.3,4309.2,0.004]
[1756883575987,9.23894177,4309.3,4309.2,0.004]
[1756883576187,11.53631894,4309.3,4309.2,0.004]
[1756883576765,12.23404123,4309.3,4309.2,0.004]
[1756883577688,9.91347873,4309.3,4309.2,0.004]
[1756883578294,5.07532229,4309.3,4309.2,0.004]
[1756883578496,4.78072229,4309.3,4309.2,0.004]
[1756883578688,4.78072229,4309.3,4309.2,0.3075]
[1756883578866,4.082,4309.3,4309.2,1.0995]
[1756883579062,1.656,4309.8,4309.2,4.37621635]
[1756883579280,4.082,4309.7,4309.6,0.792]
[1756883579489,0.116,4309.7,4309.6,3.11240096]
[1756883579698,0.116,4309.7,4309.6,4.28940096]
[1756883580798,0.116,4309.7,4309.6,3.86120096]
[1756883580999,0.116,4309.7,4309.6,1.5408]
[1756883581196,0.116,4309.7,4309.6,4.7183461]
[1756883581399,0.021,4309.8,4309.7,2.32034712]
[1756883581590,0.021,4309.8,4309.7,3.20314712]
[1756883581789,0.021,4309.8,4309.7,3.49734712]
[1756883582769,0.021,4309.8,4309.7,0.7488]
[1756883583170,0.021,4309.8,4309.7,2.61454712]
[1756883583395,0.021,4309.8,4309.7,0.2942]
[1756883583904,0.021,4309.8,4309.4,0.9988]
[1756883583905,0.7636,4309.8,4309.4,0.116]
[1756883584106,0.5602,4309.7,4309.3,0.792]
[1756883584310,0.5602,4309.7,4309.2,0.796]
[1756883584483,0.116,4309.7,4309.2,0.796]
[1756883584687,0.9233,4309.6,4309.2,0.796]
[1756883585010,0.9233,4309.6,4309.2,3.11660936]
[1756883585183,0.4442,4309.6,4309.2,3.11660936]
[1756883586576,0.2984,4309.3,4309.2,0.004]
[1756883586812,0.4144,4309.3,4309.2,0.004]
[1756883586990,0.116,4309.3,4309.2,0.004]
[1756883587610,0.4144,4309.3,4309.2,0.004]
[1756883588010,0.116,4309.3,4309.2,1.0902]
[1756883588191,0.116,4309.3,4309.2,3.41081635]
[1756883589108,0.116,4309.3,4309.2,3.86541635]
[1756883589308,0.021,4309.8,4309.6,0.792]
[1756883589309,0.137,4309.8,4309.6,0.792]
[1756883589631,0.137,4309.8,4309.7,3.11234712]
[1756883590076,0.137,4309.8,4309.7,3.86114712]
[1756883590277,0.137,4309.8,4309.7,3.40654712]
[1756883591682,0.137,4309.8,4309.7,3.86114712]
[1756883592319,0.137,4309.8,4309.7,1.0862]
[1756883592476,0.8796,4309.8,4309.7,0.792]
[1756883592679,1.3587,4309.8,4309.7,0.792]
[1756883593115,1.91425533,4309.8,4309.2,0.12]
[1756883593407,0.116,4309.4,4309.3,0.792]
[1756883593711,0.116,4309.4,4309.3,3.8613625]
[1756883593878,0.116,4309.4,4309.3,3.4067625]
[1756883595807,0.116,4309.4,4309.3,3.8613625]
[1756883596009,3.984,4309.8,4309.3,2.20494341]
[1756883596210,0.116,4309.7,4309.4,0.792]
[1756883596375,0.116,4309.7,4309.6,3.40660096]
[1756883597028,0.116,4309.7,4309.6,1.0862]
[1756883597187,0.8586,4309.7,4309.3,0.792]
[1756883597382,0.8586,4309.7,4309.3,2.3205625]
[1756883597383,0.8935,4309.7,4309.3,2.3205625]
[1756883597626,1.3377,4309.7,4309.3,2.3205625]
[1756883598027,1.3377,4309.7,4309.5,0.792]
[1756883598199,0.4442,4309.6,4309.2,0.796]
[1756883598527,0.4791,4309.6,4309.5,0.792]
[1756883598813,0.2984,4309.6,4309.5,2.3204548]
[1756883598983,0.116,4309.7,4309.6,0.792]
[1756883599177,0.116,4309.7,4309.6,3.40660096]
[1756883600615,0.021,4309.8,4309.7,3.11234712]
[1756883601086,0.021,4309.8,4309.7,3.40654712]
[1756883601987,0.021,4309.8,4309.7,4.21518812]
[1756883602186,0.021,4309.8,4309.7,5.27655118]
[1756883602519,0.021,4309.8,4309.7,4.84835118]
[1756883602681,0.021,4309.8,4309.7,3.78698812]
[1756883603697,0.021,4309.8,4309.7,3.33238812]
[1756883606112,0.021,4309.8,4309.7,3.78698812]
[1756883606421,0.021,4309.8,4309.7,4.21518812]
[1756883606831,0.021,4309.8,4309.7,4.33118812]
[1756883607614,0.021,4309.8,4309.7,10.13189609]
[1756883607985,0.021,4309.8,4309.7,10.56009609]
[1756883609288,0.021,4309.8,4309.7,6.59909609]
[1756883609493,0.021,4309.8,4309.7,10.13189609]
[1756883609693,0.021,4309.8,4309.7,7.86398812]
[1756883610119,0.021,4309.8,4309.7,20.96398812]
[1756883610517,0.021,4309.8,4309.7,21.43708812]
[1756883611745,0.001,4310.1,4310.0,3.11218561]
[1756883611900,0.001,4310.1,4310.0,14.74509921]
[1756883612227,1e-08,4310.1,4310.0,18.25380718]
[1756883612413,0.001,4310.2,4310.0,18.25380718]
[1756883612615,1e-08,4310.2,4310.1,4.04073178]
[1756883612995,1e-08,4310.2,4310.1,4.35293178]
[1756883613194,1e-08,4310.2,4310.1,4.37613309]
[1756883613394,1e-08,4310.2,4310.1,6.64404106]
[1756883613596,1e-08,4310.2,4310.1,19.24773975]
[1756883613837,1e-08,4310.2,4310.1,23.20673975]
[1756883614045,1e-08,4310.2,4310.1,23.67983975]
[1756883615924,1e-08,4310.2,4310.1,19.24773975]
[1756883616130,1e-08,4310.2,4310.1,22.75023975]
[1756883618939,1e-08,4310.2,4310.1,23.67883975]
[1756883619451,1e-08,4310.2,4310.1,23.79483975]
[1756883619957,0.001,4310.5,4310.4,3.1119703]
[1756883620121,0.4324,4311.7,4310.6,3.11186266]
[1756883620454,0.4324,4311.7,4310.6,7.40426128]
[1756883620650,0.4324,4311.7,4310.6,21.40966266]
[1756883620849,0.4324,4311.7,4310.7,3.11180884]
[1756883621149,0.001,4311.1,4310.7,4.04040884]
[1756883621451,0.001,4311.1,4310.7,19.47373815]
[1756883621952,0.001,4311.1,4311.0,3.11164741]
[1756883622252,0.001,4311.1,4311.0,8.81964741]
[1756883622453,0.001,4311.1,4311.0,9.13184741]
[1756883622646,0.001,4311.1,4311.0,16.09836101]
[1756883622842,0.001,4311.1,4311.0,17.5937725]
[1756883623454,0.001,4311.1,4311.0,17.1206725]
[1756883623757,0.001,4311.1,4311.0,16.6651725]
[1756883624147,0.001,4311.1,4311.0,29.7651725]
[1756883624662,0.001,4311.1,4311.0,23.7272589]
[1756883627031,0.001,4311.1,4311.0,29.7651725]
[1756883628368,0.001,4311.1,4311.0,23.7272589]
[1756883629840,0.001,4311.1,4311.0,23.4130589]
[1756883630038,0.3,4311.1,4311.0,23.4130589]
[1756883630241,0.7324,4311.1,4311.0,19.4580589]
[1756883630538,1.2257,4311.1,4311.0,21.12564741]
[1756883630740,1.2257,4311.1,4311.0,14.851]
[1756883630945,1.2257,4311.1,4311.0,5.706]
[1756883631147,1.2257,4311.1,4311.0,8.02564741]
[1756883631444,1.2257,4311.1,4311.0,8.81764741]
[1756883633266,1.2257,4311.1,4311.0,4.86264741]
[1756883633475,1.2257,4311.1,4311.0,8.81664741]
[1756883634157,0.001,4311.1,4311.0,8.81664741]
[1756883634361,0.001,4311.1,4311.0,16.88419202]
[1756883634948,0.7324,4311.1,4311.0,6.58007842]
[1756883635155,0.7324,4311.1,4311.0,10.53407842]
[1756883635971,1.2257,4311.1,4311.0,8.81664741]
[1756883636876,1.2257,4311.1,4311.0,4.86264741]
[1756883637043,1.2257,4311.1,4311.0,8.81664741]
[1756883637884,1.2257,4311.1,4311.0,4.86264741]
[1756883638172,1.2257,4311.1,4311.0,8.81564741]
[1756883640443,1.2257,4311.1,4311.0,0.792]
[1756883640652,1.2257,4311.1,4311.0,7.06464741]
[1756883642053,1.2257,4311.1,4311.0,7.06364741]
[1756883646390,1.2257,4311.1,4311.0,4.744]
[1756883646761,1.2257,4311.1,4311.0,7.06364741]
[1756883649691,1.2257,4311.1,4311.0,4.744]
[1756883649863,1.2257,4311.1,4311.0,3.11164741]
[1756883650194,1.2257,4311.1,4311.0,7.06264741]
[1756883652492,0.3,4311.1,4311.0,7.06264741]
[1756883653277,0.001,4311.1,4311.0,7.06264741]
[1756883653874,0.001,4311.1,4311.0,7.35054741]
[1756883654597,0.001,4311.1,4311.0,7.06264741]
[1756883655785,0.001,4311.1,4311.0,7.35054741]
[1756883655991,0.001,4311.1,4311.0,7.85004741]
[1756883656306,0.001,4311.1,4311.0,8.29384741]
[1756883656527,0.001,4311.1,4311.0,8.92340631]
[1756883656834,0.001,4311.1,4311.0,5.53220631]
[1756883657113,0.001,4311.1,4311.0,9.48220631]
[1756883661125,0.001,4311.1,4311.0,22.67515747]
[1756883662292,1e-08,4311.1,4311.0,22.67515747]
[1756883662492,1e-08,4311.6,4311.5,3.1113784]
[1756883662698,0.001,4312.0,4311.7,6.8299136]
[1756883662699,1e-08,4311.8,4311.7,6.8299136]
[1756883662995,1e-08,4311.8,4311.7,16.38508442]
[1756883663195,1e-08,4311.8,4311.7,29.48508442]
[1756883663425,1e-08,4311.8,4311.7,31.12537886]
[1756883664126,1e-08,4311.8,4311.7,31.24137886]
[1756883664427,1e-08,4311.8,4311.7,29.56128683]
[1756883664628,1e-08,4311.8,4311.7,33.50928683]
[1756883666934,1e-08,4311.8,4311.7,26.52707323]
[1756883667099,1e-08,4311.8,4311.7,25.83007879]
[1756883667300,1e-08,4311.8,4311.7,26.26417879]
[1756883667839,1e-08,4311.8,4311.7,27.20747879]
[1756883668334,1e-08,4311.8,4311.7,26.76367879]
[1756883668698,1e-08,4311.8,4311.7,34.57380152]
[1756883669909,1e-08,4311.8,4311.7,30.62680152]
[1756883670208,1e-08,4311.8,4311.7,29.68350152]
[1756883670413,1e-08,4311.8,4311.7,33.62950152]
[1756883671037,1e-08,4311.8,4311.7,34.08980152]
[1756883672228,1e-08,4311.8,4311.7,33.62950152]
[1756883672427,1e-08,4311.8,4311.7,29.68350152]
[1756883672628,1e-08,4311.8,4311.7,33.62950152]
[1756883673132,0.00100001,4311.8,4311.7,33.62950152]
[1756883673504,1e-08,4311.8,4311.7,30.14380152]
[1756883673700,1e-08,4311.8,4311.7,34.08880152]
[1756883673936,1e-08,4311.8,4311.7,34.53230152]
[1756883674136,1e-08,4311.8,4311.7,34.08880152]
[1756883674316,1e-08,4311.8,4311.7,22.31717879]
[1756883674639,1e-08,4311.8,4311.7,26.26087879]
[1756883675326,1e-08,4311.8,4311.7,34.08750152]
[1756883675524,1e-08,4311.8,4311.7,34.53100152]
[1756883675741,1e-08,4312.0,4311.9,3.11116324]
[1756883675943,1e-08,4312.0,4311.9,8.40226284]
[1756883676154,1e-08,4312.0,4311.9,12.78437121]
[1756883676312,1e-08,4312.0,4311.9,13.16389949]
[1756883676922,1e-08,4312.0,4311.9,8.75859949]
[1756883677239,1e-08,4312.0,4311.9,8.47199949]
[1756883677444,0.31140001,4312.0,4311.9,12.41599949]
[1756883677622,1e-08,4312.0,4311.9,12.41599949]
[1756883678022,1e-08,4312.0,4311.9,25.80259949]
[1756883678317,1e-08,4312.0,4311.9,21.57199949]
[1756883678523,0.74330001,4312.0,4311.9,25.51599949]
[1756883679646,1e-08,4312.0,4311.9,25.80259949]
[1756883681549,0.74330001,4312.0,4311.9,25.51599949]
[1756883681753,0.74330001,4312.0,4311.9,21.47907121]
[1756883681926,0.74330001,4312.0,4311.9,25.42207121]
[1756883682946,1.19820001,4312.0,4311.9,15.41916324]
[1756883683110,1.19820001,4312.0,4311.9,19.36216324]
[1756883683314,1.19820001,4312.0,4311.9,20.15416324]
[1756883686043,1.19820001,4312.0,4311.9,7.05416324]
[1756883686427,1.19820001,4312.0,4311.9,20.15416324]
[1756883686749,1e-08,4312.0,4311.9,20.15416324]
[1756883687154,1e-08,4312.0,4311.9,22.38524354]
[1756883687317,1e-08,4312.0,4311.9,25.50124354]
[1756883687918,1e-08,4312.0,4311.9,25.93414354]
[1756883689218,0.31140001,4312.0,4311.9,21.70454354]
[1756883689474,1e-08,4312.0,4311.9,25.64654354]
[1756883689753,0.74330001,4312.0,4311.9,12.54654354]
[1756883689937,0.31140001,4312.0,4311.9,12.54654354]
[1756883690141,0.31140001,4312.0,4311.9,25.64654354]
[1756883690339,1e-08,4312.0,4311.9,25.64654354]
[1756883690740,1e-08,4312.0,4311.9,25.64554354]
[1756883692457,0.31140001,4312.0,4311.9,25.64554354]
[1756883692653,0.76630001,4312.0,4311.9,21.70454354]
[1756883692834,1e-08,4312.0,4311.9,25.21264354]
[1756883694548,0.74330001,4312.0,4311.9,25.21264354]
[1756883695052,0.31140001,4312.0,4311.9,25.21264354]
[1756883695256,1e-08,4312.0,4311.9,25.49924354]
[1756883696055,0.74330001,4312.0,4311.9,25.21164354]
[1756883696261,0.74330001,4312.0,4311.9,21.70354354]
[1756883696262,1.19820001,4312.0,4311.9,21.70354354]
[1756883696434,1.19820001,4312.0,4311.9,25.64354354]
[1756883696624,0.31140001,4312.0,4311.9,25.64354354]
[1756883696828,0.31140001,4312.0,4311.9,21.70354354]
[1756883697051,0.74330001,4312.0,4311.9,25.64354354]
[1756883697251,1e-08,4312.0,4311.9,25.93014354]
[1756883697447,1e-08,4312.0,4311.9,25.64354354]
[1756883698261,1e-08,4312.0,4311.9,25.93014354]
[1756883698569,1e-08,4312.0,4311.9,21.99014354]
[1756883698733,1e-08,4312.0,4311.9,25.93014354]
[1756883700256,0.31140001,4312.0,4311.9,21.99014354]
[1756883700456,1.23460001,4312.0,4311.9,23.26616324]
[1756883700933,1e-08,4312.0,4311.9,23.57006324]
[1756883701545,1e-08,4312.0,4311.9,23.26616324]
[1756883701748,0.76930001,4312.0,4311.9,19.78946324]
[1756883701944,1.23120001,4312.0,4311.9,20.72846324]
[1756883702167,1.23120001,4312.0,4311.9,20.26616324]
[1756883702471,1.23120001,4312.0,4311.9,7.16616324]
[1756883702833,1.23120001,4312.0,4311.9,3.22716324]
[1756883703033,1.23120001,4312.0,4311.9,7.16616324]
[1756883703570,1e-08,4312.0,4311.9,5.48610362]
[1756883703730,1e-08,4312.0,4311.9,9.72900362]
[1756883703926,1e-08,4312.0,4311.9,9.42510362]
[1756883704161,1e-08,4312.0,4311.9,5.48610362]
[1756883704355,0.76930001,4312.0,4311.9,9.42510362]
[1756883705230,1.23120001,4312.0,4311.9,9.42510362]
[1756883706061,1.23120001,4312.0,4311.9,7.16616324]
[1756883706264,1.23120001,4312.0,4311.9,20.26616324]
[1756883708265,1.23120001,4312.0,4311.9,20.26516324]
[1756883709064,1.23120001,4312.0,4311.9,7.16516324]
[1756883709834,1.23120001,4312.0,4311.8,0.004]
[1756883710047,0.14630533,4311.9,4311.8,0.004]
[1756883710456,1.37750533,4311.9,4311.8,0.004]
[1756883711166,1.49350533,4311.9,4311.8,0.004]
[1756883712069,4.49350533,4311.9,4311.8,0.004]
[1756883712233,14.1789913,4311.9,4311.8,0.004]
[1756883712439,14.46411734,4311.9,4311.8,0.004]
[1756883712871,9.68570113,4311.5,4311.4,0.004]
[1756883713170,14.43570113,4311.5,4311.4,0.004]
[1756883713370,15.66690113,4311.5,4311.4,0.004]
[1756883713673,15.75989508,4311.5,4311.4,0.004]
[1756883715941,19.69689508,4311.5,4311.4,0.004]
[1756883726278,3.0,4311.4,4310.8,0.024]
[1756883726481,2.31975503,4310.8,4310.3,0.004]
[1756883726645,10.79032273,4310.4,4310.3,0.004]
[1756883726848,17.04629303,4310.4,4310.3,0.004]
[1756883727178,17.96949303,4310.4,4310.3,0.004]
[1756883727380,18.08752635,4310.4,4310.3,0.004]
[1756883728203,17.96949303,4310.4,4310.3,0.004]
[1756883728485,25.12949303,4310.4,4310.3,0.004]
[1756883729303,25.24629973,4310.4,4310.3,0.004]
[1756883729472,23.92220958,4310.4,4310.3,0.004]
[1756883731068,22.88220288,4310.4,4310.3,0.004]
[1756883731663,23.83270288,4310.4,4310.3,0.004]
[1756883736103,22.88220288,4310.4,4310.3,0.004]
[1756883736605,23.33490288,4310.4,4310.3,0.004]
[1756883737129,23.83270288,4310.4,4310.3,0.004]
[1756883738526,2.32018561,4310.0,4309.9,0.004]
[1756883738699,15.43660352,4310.0,4309.9,0.004]
[1756883739021,16.65821819,4310.0,4309.9,0.004]
[1756883739195,16.25345107,4310.0,4309.9,0.004]
[1756883739394,12.31845107,4310.0,4309.9,0.004]
[1756883739624,16.25345107,4310.0,4309.9,0.004]
[1756883740384,16.75125107,4310.0,4309.9,0.004]
[1756883741334,16.25345107,4310.0,4309.9,0.004]
[1756883742131,16.75125107,4310.0,4309.9,0.004]
[1756883742719,15.50645107,4310.0,4309.9,0.004]
[1756883742923,16.75125107,4310.0,4309.9,0.004]
[1756883743233,3.0,4309.9,4309.2,0.004]
[1756883743405,3.0,4309.9,4309.1,0.004]
[1756883743406,17.40502766,4309.3,4309.1,0.004]
[1756883743604,17.40502766,4309.3,4308.8,0.024]
[1756883743605,2.32077792,4308.9,4308.8,0.024]
[1756883743810,17.07319583,4308.9,4308.8,0.024]
[1756883744001,17.0500105,4308.9,4308.8,0.024]
[1756883744201,17.3443105,4308.9,4308.8,0.024]
[1756883744502,13.1150105,4308.9,4308.8,0.024]
[1756883744703,17.0490105,4308.9,4308.8,0.3136]
[1756883746229,13.1150105,4308.9,4308.8,0.7755]
[1756883746535,3.934,4309.4,4308.9,0.792]
[1756883746722,0.116,4309.1,4309.0,4.23986406]
[1756883746941,0.116,4309.1,4309.0,4.52946406]
[1756883747629,3.934,4309.3,4309.1,0.792]
[1756883747824,4.05,4309.3,4309.2,0.792]
[1756883748026,4.05,4309.3,4309.2,1.0816]
[1756883748230,0.116,4309.3,4309.2,4.32601635]
[1756883748612,0.116,4309.3,4309.2,2.0054]
[1756883748835,0.116,4309.3,4309.2,4.32601635]
[1756883749439,0.116,4309.3,4309.2,2.0054]
[1756883749631,0.116,4309.3,4309.2,4.32601635]